bitfinex-derivatives/quotes_ETHF0:USTF0_20250604
["timestamp","ask_amount","ask_price","bid_price","bid_amount"]
[1749053791397,0.75129,2660.9,2660.8,0.75128]
[1749053791601,0.75131,2660.8,2660.7,0.7513]
[1749053791997,3.95909,2660.9,2660.8,0.7513]
[1749053792402,0.75133,2660.8,2660.7,0.75131]
[1749053793401,0.75133,2660.7,2660.6,1.39534]
[1749053793799,0.75133,2660.7,2660.6,1.46265476]
[1749053794602,3.2078,2660.9,2660.8,0.7513]
[1749053794896,3.95907,2660.9,2660.8,0.7513]
[1749053795108,0.75133,2660.8,2660.7,0.75131]
[1749053795298,0.75133,2660.7,2660.6,1.39534]
[1749053795701,0.75133,2660.7,2660.6,1.39536]
[1749053795903,0.75136,2660.6,2660.5,0.75699698]
[1749053796104,3.95916,2660.6,2660.5,0.00563698]
[1749053798316,3.95916,2660.6,2660.5,0.75702698]
[1749053798906,3.95916,2660.6,2660.5,0.00563698]
[1749053799303,0.75153,2660.0,2659.9,0.75154]
[1749053799606,0.75156,2659.9,2659.8,5.7396]
[1749053799798,0.75156,2659.9,2659.8,0.6756]
[1749053800802,0.75156,2659.9,2659.8,1.42718]
[1749053801004,0.75161,2659.7,2659.6,0.00563698]
[1749053801205,3.95941,2659.7,2659.6,0.00563698]
[1749053802518,4.61301,2659.7,2659.6,0.00563698]
[1749053802911,4.79860948,2659.7,2659.6,0.00563698]
[1749053803413,4.79860948,2659.7,2659.6,0.76378385]
[1749053803907,4.79860948,2659.7,2659.6,0.01214385]
[1749053804509,0.83919948,2659.7,2659.6,0.76378385]
[1749053804715,3.2078,2660.0,2659.6,0.76378385]
[1749053804716,0.75157,2659.9,2659.8,0.75156]
[1749053805010,0.75161,2659.7,2659.6,0.76378385]
[1749053805216,4.79691264,2659.7,2659.6,0.01214385]
[1749053807218,4.79691264,2659.7,2659.6,0.07945861]
[1749053808016,4.79691264,2659.7,2659.6,0.01214385]
[1749053808516,4.79766475,2659.7,2659.6,0.01214385]
[1749053808910,4.04605475,2659.7,2659.6,0.76378385]
[1749053809129,4.79766475,2659.7,2659.6,0.76378385]
[1749053809814,4.04605475,2659.7,2659.6,0.76378385]
[1749053810012,4.79766475,2659.7,2659.6,0.83109861]
[1749053810214,0.83825475,2659.7,2659.6,0.83109861]
[1749053810719,0.83825475,2659.7,2659.6,5.87609861]
[1749053811816,3.2078,2660.0,2659.9,0.75156]
[1749053812220,0.75155,2659.9,2659.8,1.40458]
[1749053812420,3.95935,2660.0,2659.9,0.75155]
[1749053812612,0.75155,2659.9,2659.8,0.653]
[1749053812809,3.2078,2660.0,2659.9,0.75155]
[1749053813222,3.2078,2660.0,2659.9,1.99345]
[1749053814322,0.75146,2660.3,2660.2,0.75147]
[1749053814517,0.6614,2660.6,2659.9,4.4497]
[1749053814719,3.2078,2660.7,2660.6,0.75136]
[1749053815422,3.2078,2660.7,2660.6,3.34486]
[1749053816218,3.2078,2660.7,2660.6,1.3516]
[1749053816421,3.95913,2660.7,2660.6,6.3966]
[1749053816629,3.95913,2660.7,2660.6,1.3516]
[1749053817224,1.8784,2660.6,2660.1,1.2151]
[1749053817421,0.75151,2660.1,2659.8,5.045]
[1749053817620,0.75151,2660.1,2660.0,0.75151]
[1749053817824,5.08637,2660.4,2659.9,0.6523]
[1749053817825,1.87865,2660.3,2659.9,0.6523]
[1749053818028,0.75153,2660.0,2659.9,1.40385]
[1749053818524,3.95932,2660.1,2660.0,0.75153]
[1749053819025,0.75153,2660.0,2659.9,1.40384]
[1749053819317,0.75153,2660.0,2659.6,1.89123385]
[1749053819318,0.7516,2659.8,2659.6,0.01214385]
[1749053819524,3.2078,2659.7,2659.6,1.44728385]
[1749053819829,0.75158,2659.9,2659.7,0.75161]
[1749053820026,5.0865,2660.2,2659.6,0.69564385]
[1749053820325,3.2078,2659.9,2659.6,0.69564385]
[1749053820527,0.75161,2659.7,2659.6,0.69564385]
[1749053821027,0.75161,2659.7,2659.6,0.01214385]
[1749053821618,3.2078,2659.9,2659.6,0.01214385]
[1749053821619,0.75159,2659.8,2659.6,0.01214385]
[1749053821824,3.2078,2659.9,2659.8,0.75158]
[1749053822618,3.95936,2659.9,2659.8,0.75158]
[1749053822825,3.2078,2659.9,2659.8,0.75158]
[1749053823129,0.75159,2659.8,2659.7,0.75159]
[1749053823428,0.75161,2659.7,2659.6,5.80876385]
[1749053823626,0.75161,2659.7,2659.6,0.76376385]
[1749053823816,1.58964791,2659.7,2659.6,0.01214385]
[1749053824024,1.58963525,2659.7,2659.6,0.01214385]
[1749053825731,2.83193525,2659.7,2659.6,0.76378385]
[1749053825918,0.83802525,2659.7,2659.6,0.76378385]
[1749053826320,1.58963525,2659.7,2659.6,0.83109861]
[1749053826724,0.83802525,2659.7,2659.6,0.83109861]
[1749053827430,0.83802525,2659.7,2659.6,0.01214385]
[1749053827431,1.58963525,2659.7,2659.6,0.01214385]
[1749053827629,0.75175,2659.3,2658.9,0.6581]
[1749053827830,3.2078,2659.3,2659.2,0.75175]
[1749053828025,0.83764826,2659.3,2659.2,0.75175]
[1749053828226,3.95945,2659.6,2659.5,0.75167]
[1749053828534,4.04538787,2659.6,2659.5,0.75167]
[1749053828829,0.83758787,2659.6,2659.5,0.75167]
[1749053829130,0.00563698,2659.8,2659.7,0.75161]
[1749053829827,5.8124,2660.7,2660.1,1.8787]
[1749053830028,0.75141,2660.4,2660.3,0.75142]
[1749053830330,0.75144,2660.3,2660.2,6.45457]
[1749053830827,0.75144,2660.3,2660.2,5.7031]
[1749053831329,0.75144,2660.3,2660.2,5.045]
[1749053831532,0.75147,2660.2,2660.1,0.75148]
[1749053832934,0.75152,2660.1,2660.0,0.75152]
[1749053833229,0.75153,2660.0,2659.9,5.045]
[1749053833733,0.75156,2659.9,2659.3,6.92994698]
[1749053833922,3.2078,2660.1,2659.5,2.55388]
[1749053834128,3.2078,2660.1,2660.0,0.75153]
[1749053834534,0.75153,2660.0,2659.9,0.75154]
[1749053835130,0.75164,2659.6,2659.5,0.6747]
[1749053835333,0.75167,2659.5,2659.4,0.6683]
[1749053835533,0.7517,2659.4,2659.3,0.00563698]
[1749053835736,0.7517,2659.4,2659.3,0.75736698]
[1749053836225,1.2883,2659.5,2659.3,0.00563698]
[1749053836430,2.03998,2659.5,2659.4,0.7517]
[1749053836631,0.7517,2659.4,2659.3,0.75734698]
[1749053836832,2.03999,2659.5,2659.4,0.7517]
[1749053837232,2.03999,2659.5,2659.3,0.75734698]
[1749053837233,0.7517,2659.4,2659.3,0.75734698]
[1749053837435,2.03998,2659.5,2659.4,0.7517]
[1749053837936,3.2078,2659.6,2659.5,0.75167]
[1749053838236,0.75161,2659.7,2659.6,0.75162]
[1749053838536,0.75162,2659.7,2659.6,0.75163]
[1749053839430,0.7516,2659.8,2659.7,0.75159]
[1749053839633,3.2078,2659.9,2659.8,0.75158]
[1749053840429,3.2078,2659.9,2659.6,0.75162]
[1749053840631,1.9926,2659.8,2659.7,0.75161]
[1749053840834,3.2078,2659.9,2659.8,0.75158]
[1749053841137,4.04877383,2659.9,2659.8,0.75158]
[1749053841330,4.80033383,2659.9,2659.8,0.75158]
[1749053842334,4.04877383,2659.9,2659.8,0.75158]
[1749053842734,4.80033383,2659.9,2659.8,0.75158]
[1749053842934,4.04877383,2659.9,2659.8,0.75158]
[1749053843135,4.04872271,2659.9,2659.8,0.75158]
[1749053843739,4.80028271,2659.9,2659.8,0.75158]
[1749053843940,4.04872271,2659.9,2659.8,0.75158]
[1749053844240,4.80028271,2659.9,2659.8,0.75158]
[1749053845140,4.80028271,2659.9,2659.5,0.6893]
[1749053845141,4.04872271,2659.9,2659.5,0.6893]
[1749053845337,0.75164,2659.7,2659.6,0.75162]
[1749053845536,1.59256271,2659.7,2659.6,0.75162]
[1749053845838,0.75167,2659.5,2659.4,0.6776]
[1749053846141,0.84092271,2659.5,2659.4,0.6776]
[1749053846433,0.84092271,2659.5,2659.4,1.42929]
[1749053846740,0.75163,2659.7,2659.6,0.75164]
[1749053846935,1.59383436,2659.7,2659.6,0.75164]
[1749053847729,0.84220436,2659.7,2659.4,0.6776]
[1749053847934,4.80166436,2659.6,2659.5,0.75165]
[1749053848338,4.05000436,2659.6,2659.5,0.75165]
[1749053848535,0.84220436,2659.6,2659.5,0.75165]
[1749053848838,3.2078,2659.9,2659.8,0.75158]
[1749053849040,4.05050197,2659.9,2659.8,0.75158]
[1749053850542,0.7516,2659.8,2659.7,0.75158]
[1749053850742,1.59430197,2659.8,2659.7,0.75158]
[1749053851236,0.84270197,2659.8,2659.4,3.82334]
[1749053851441,0.75167,2659.6,2659.5,0.75163]
[1749053851646,1.59437197,2659.6,2659.5,0.75163]
[1749053851840,0.75163,2659.7,2659.6,0.75164]
[1749053852041,1.59409097,2659.7,2659.6,0.75164]
[1749053852343,0.84246097,2659.7,2659.6,0.75164]
[1749053852940,1.59407097,2659.7,2659.6,0.75164]
[1749053853146,0.75167,2659.5,2659.4,0.6776]
[1749053853443,4.80193097,2659.5,2659.4,0.6776]
[1749053853653,4.80193097,2659.5,2659.4,1.4293]
[1749053853936,4.80193097,2659.5,2659.3,0.00563698]
[1749053853937,0.7517,2659.4,2659.3,0.00563698]
[1749053854136,1.59416097,2659.4,2659.3,0.00563698]
[1749053854337,1.59416097,2659.4,2659.3,0.75736698]
[1749053854939,0.84246097,2659.4,2659.3,0.75736698]
[1749053855642,0.84246097,2659.4,2659.3,5.78336698]
[1749053856242,1.59416681,2659.4,2659.3,5.78336698]
[1749053856431,0.84246681,2659.4,2659.3,5.78336698]
[1749053856633,1.59416681,2659.4,2659.3,5.78336698]
[1749053857549,0.84246681,2659.4,2659.3,5.78336698]
[1749053858239,3.8565,2660.0,2659.9,0.75156]
[1749053858444,3.2078,2660.0,2659.9,0.75156]
[1749053858637,0.75148,2660.2,2660.1,0.75147]
[1749053858940,0.7515,2660.1,2660.0,0.6522]
[1749053859738,0.7515,2660.1,2660.0,1.40373]
[1749053859939,0.75155,2660.0,2659.6,1.8791]
[1749053860135,3.2078,2660.0,2659.9,0.75156]
[1749053860447,0.75158,2659.9,2659.8,0.75156]
[1749053860744,3.95934,2660.0,2659.9,0.75156]
[1749053861346,0.75158,2659.9,2659.8,0.75157]
[1749053861650,3.75836,2659.5,2658.5,0.6897]
[1749053861849,5.08712,2659.3,2658.8,0.75187]
[1749053862045,0.75182,2659.0,2658.9,0.75184]
[1749053862542,5.72802,2659.3,2658.8,1.87967]
[1749053862543,3.8487,2659.3,2658.8,1.87967]
[1749053862748,0.75177,2659.2,2659.1,0.75177]
[1749053863134,3.21343698,2659.3,2659.2,0.75175]
[1749053863543,0.75177,2659.2,2659.1,0.75177]
[1749053863843,3.96516698,2659.3,2659.2,0.75175]
[1749053866046,3.21343698,2659.3,2658.8,0.00563698]
[1749053866253,3.95964,2658.9,2658.8,0.75750698]
[1749053867154,3.95964,2658.9,2658.8,0.00563698]
[1749053867351,3.95964,2658.9,2658.8,0.75750698]
[1749053868752,3.2078,2658.9,2658.8,0.75750698]
[1749053868951,3.2078,2659.2,2658.9,1.87958]
[1749053869169,3.2078,2659.2,2659.1,0.75178]
[1749053870552,0.84795465,2659.2,2659.1,0.75178]
[1749053870754,1.59970465,2659.2,2659.1,0.75178]
[1749053870954,0.75184,2658.9,2658.8,0.00563698]
[1749053871146,0.84795465,2658.9,2658.8,5.01363698]
[1749053871342,0.84795465,2658.9,2658.8,0.75750698]
[1749053871643,4.80759465,2658.9,2658.8,0.00563698]
[1749053872450,5.48009465,2658.9,2658.8,0.00563698]
[1749053872646,0.75195,2658.5,2658.4,0.15473671]
[1749053872855,0.75212,2657.9,2657.8,1.7203316]
[1749053873245,1.60007465,2657.9,2657.8,1.4684]
[1749053873550,0.75218,2657.7,2657.6,5.008]
[1749053873750,4.05590799,2657.7,2657.6,5.008]
[1749053873958,4.05590799,2657.7,2657.6,5.76021]
[1749053874151,0.84810799,2657.7,2657.6,5.76021]
[1749053874550,0.84810799,2657.7,2657.6,0.75221]
[1749053874753,0.84810799,2657.7,2657.6,5.76021]
[1749053874953,0.84810799,2657.7,2657.6,0.75221]
[1749053875455,0.84810799,2657.7,2657.6,5.76121]
[1749053875657,4.05590799,2657.7,2657.5,0.75222]
[1749053875857,0.84595656,2657.6,2657.5,0.75222]
[1749053876050,0.84595656,2657.6,2657.4,5.01463698]
[1749053876251,0.84595656,2657.5,2657.4,5.76689698]
[1749053876457,0.84597975,2657.6,2657.4,5.01463698]
[1749053876756,3.2078,2657.7,2657.6,0.75221]
[1749053876956,4.05315939,2657.7,2657.6,0.75221]
[1749053877651,4.0531808,2657.7,2657.6,0.75221]
[1749053877858,4.8053708,2657.7,2657.5,5.009]
[1749053878160,0.8453808,2657.6,2657.5,5.76123]
[1749053879157,5.8453808,2657.6,2656.7,5.009]
[1749053879355,6.6125808,2657.5,2656.7,5.25002627]
[1749053879659,0.8453808,2657.4,2657.3,0.75229]
[1749053879856,0.8453808,2657.4,2657.3,5.76129]
[1749053880250,3.2078,2657.5,2657.3,0.75229]
[1749053880447,3.2078,2657.5,2657.4,0.75226]
[1749053880652,0.84209809,2657.5,2657.4,0.75226]
[1749053880956,3.2078,2657.8,2657.7,0.75218]
[1749053881150,4.04986651,2657.8,2657.7,0.75218]
[1749053881350,6.07961651,2657.8,2657.7,0.75218]
[1749053881550,5.32746651,2657.8,2657.7,0.75218]
[1749053881751,6.07962651,2657.8,2657.6,5.01]
[1749053881956,4.4854,2657.8,2657.7,0.75218]
[1749053882260,5.32720593,2657.8,2657.7,0.75218]
[1749053882747,6.07935593,2657.8,2657.7,0.75218]
[1749053883354,4.04960593,2657.8,2657.7,0.75218]
[1749053883559,4.04960593,2657.8,2657.7,1.36998]
[1749053883758,4.80177593,2657.8,2657.7,5.01]
[1749053883961,5.99387593,2657.8,2657.7,5.01]
[1749053884149,5.24170593,2657.8,2657.7,5.76218]
[1749053884552,5.99355676,2657.8,2657.7,5.76218]
[1749053884861,5.99355676,2657.8,2657.7,0.75218]
[1749053885661,5.88940676,2657.8,2657.2,0.6178]
[1749053885858,3.2078,2657.5,2657.3,5.01]
[1749053886050,0.75219,2657.7,2657.3,5.01]
[1749053886256,0.84151926,2657.6,2657.5,0.75221]
[1749053887156,0.84151926,2657.6,2657.5,5.76221]
[1749053888957,4.60796,2657.8,2657.7,0.75218]
[1749053889159,5.44956721,2657.8,2657.7,0.75218]
[1749053889558,4.04940721,2657.8,2657.7,0.75218]
[1749053890568,4.80155721,2657.8,2657.7,0.75218]
[1749053890865,4.04940721,2657.8,2657.7,0.75218]
[1749053893271,0.00563698,2657.9,2657.8,0.75215]
[1749053893459,0.84869747,2657.9,2657.8,7.68405]
[1749053894070,0.84899654,2657.9,2657.8,6.40845]
[1749053894466,0.84900194,2657.9,2657.8,6.40845]
[1749053894668,0.84900194,2657.9,2657.8,1.39745]
[1749053895271,1.60112194,2657.9,2657.8,5.76315]
[1749053895464,1.60112194,2657.9,2657.8,0.75215]
[1749053895664,0.75216,2657.8,2657.7,5.76316]
[1749053895871,4.80332496,2657.8,2657.7,5.76316]
[1749053896468,4.05116496,2657.8,2657.7,5.76316]
[1749053896968,4.80331496,2657.8,2657.7,5.76316]
[1749053897274,6.05301496,2657.8,2657.7,5.76316]
[1749053897577,6.05433831,2657.8,2657.7,5.76316]
[1749053897765,5.30218831,2657.8,2657.7,5.76316]
[1749053898166,5.30218831,2657.8,2657.7,0.75216]
[1749053898468,4.05248831,2657.8,2657.7,5.76216]
[1749053900278,4.05248831,2657.8,2657.7,0.75216]
[1749053900481,4.05248831,2657.8,2657.7,5.76216]
[1749053900879,0.84468831,2657.8,2657.7,0.75216]
[1749053901081,0.84468831,2657.8,2657.7,5.74816]
[1749053901880,0.75776698,2657.9,2657.8,0.75215]
[1749053902180,1.60481987,2657.9,2657.8,0.75215]
[1749053902578,2.81241987,2657.9,2657.8,0.75215]
[1749053903278,0.75215,2657.8,2657.7,5.74817]
[1749053903485,4.80700289,2657.8,2657.7,5.74817]
[1749053903683,4.80700289,2657.8,2657.7,4.996]
[1749053903886,4.80700289,2657.8,2657.7,5.74818]
[1749053904281,4.80700289,2657.8,2657.7,0.75218]
[1749053904482,4.80700289,2657.8,2657.7,5.74818]
[1749053905073,4.80700289,2657.8,2657.7,0.75218]
[1749053905279,4.05485289,2657.8,2657.7,5.74818]
[1749053906282,4.05717044,2657.8,2657.7,5.74818]
[1749053907285,4.80932044,2657.8,2657.7,0.75218]
[1749053907486,4.05717044,2657.8,2657.7,5.74818]
[1749053907783,4.05717044,2657.8,2657.7,0.75218]
[1749053908082,4.80932044,2657.8,2657.7,4.996]
[1749053908281,6.01272044,2657.8,2657.7,4.996]
[1749053910275,6.01272044,2657.8,2657.7,5.74818]
[1749053910477,6.01272044,2657.8,2657.7,4.996]
[1749053910679,6.01289688,2657.8,2657.6,4.996]
[1749053910892,1.60172688,2657.7,2657.6,4.996]
[1749053911186,1.60172688,2657.7,2657.6,5.74819]
[1749053912780,0.84954688,2657.7,2657.6,5.74819]
[1749053913286,0.75221,2657.6,2657.5,0.6288]
[1749053913479,1.60175688,2657.6,2657.5,5.6248]
[1749053913681,0.84954688,2657.6,2657.1,1.84465798]
[1749053913982,0.75231,2657.3,2657.2,0.75229]
[1749053914186,1.60185688,2657.3,2657.2,0.75229]
[1749053914381,0.84954688,2657.3,2657.2,0.75229]
[1749053914782,4.4541,2657.5,2657.3,0.75226]
[1749053915088,1.60124882,2657.4,2657.3,0.75226]
[1749053915583,0.75232,2657.2,2657.1,0.00375798]
[1749053915790,4.80907882,2657.2,2657.1,0.00375798]
[1749053916186,6.06367882,2657.2,2657.1,0.00375798]
[1749053916385,4.05675882,2657.2,2657.1,0.00375798]
[1749053916690,4.80907882,2657.2,2657.1,0.00375798]
[1749053918396,4.80907882,2657.2,2657.1,0.75610798]
[1749053918586,4.80907882,2657.2,2657.1,0.00375798]
[1749053918785,4.80907882,2657.2,2657.1,0.75610798]
[1749053918987,1.88088,2657.1,2656.3,3.2078]
[1749053919187,1.88088,2657.1,2655.9,4.09608857]
[1749053919188,0.75257,2656.3,2656.2,4.997]
[1749053919392,0.84818425,2656.3,2656.2,5.74958]
[1749053919591,0.84818425,2656.3,2656.2,5.7496]
[1749053919894,1.60075425,2656.3,2656.2,0.7526]
[1749053920189,0.84818425,2656.3,2656.2,5.7496]
[1749053920590,0.84818425,2656.3,2656.2,0.7526]
[1749053920794,0.84818425,2656.3,2655.8,1.8818]
[1749053920988,4.4576,2656.4,2655.8,1.8818]
[1749053920989,0.84818425,2656.2,2656.0,0.595]
[1749053921194,0.75259,2656.3,2656.1,4.997]
[1749053921491,0.84669645,2656.2,2655.6,4.997]
[1749053921684,4.05449645,2656.1,2656.0,0.75264]
[1749053921889,4.05449645,2656.1,2655.8,4.997]
[1749053922088,0.84669645,2656.0,2655.9,0.75269]
[1749053922288,6.246,2654.8,2654.4,0.01093857]
[1749053922495,3.2078,2654.5,2654.2,1.4686]
[1749053922695,0.75314,2654.3,2654.2,1.4686]
[1749053922998,1.59983645,2654.3,2654.2,1.4686]
[1749053923185,7.79253645,2654.3,2654.2,1.4686]
[1749053923387,0.88371026,2654.3,2654.2,1.4686]
[1749053923697,3.2078,2654.5,2654.2,2.22176]
[1749053923901,3.2078,2654.5,2654.3,5.258]
[1749053924202,0.88181162,2654.4,2654.3,5.258]
[1749053924591,0.88181162,2654.4,2654.0,5.258]
[1749053924895,3.2078,2654.1,2654.0,6.01123]
[1749053925596,3.2078,2654.1,2654.0,5.258]
[1749053925901,3.2078,2654.1,2654.0,6.01123]
[1749053926198,3.2078,2654.1,2653.8,0.15473671]
[1749053926391,3.2078,2654.1,2654.0,0.75323]
[1749053926793,3.2078,2654.1,2653.9,0.75324]
[1749053927000,3.2078,2654.1,2653.8,0.15473671]
[1749053927200,3.2078,2654.1,2654.0,0.75323]
[1749053927495,3.2078,2654.1,2653.8,0.90800671]
[1749053927794,0.75324,2654.0,2653.9,5.259]
[1749053927994,3.2078,2654.1,2653.9,5.259]
[1749053928202,3.2078,2654.1,2653.9,6.01223]
[1749053928490,3.2078,2654.1,2654.0,0.75323]
[1749053929191,3.2078,2654.1,2653.9,5.259]
[1749053929393,3.2078,2654.1,2654.0,0.75323]
[1749053929598,3.2078,2654.1,2653.8,0.15473671]
[1749053929897,3.2078,2654.1,2654.0,0.06731476]
[1749053930495,3.961,2654.1,2654.0,0.06731476]
[1749053930698,5.2276,2654.1,2654.0,0.06731476]
[1749053931494,3.2078,2654.1,2654.0,0.06731476]
[1749053931698,3.961,2654.1,2654.0,0.06731476]
[1749053935105,5.2635,2654.1,2654.0,0.06731476]
[1749053935597,3.2078,2654.1,2654.0,0.82054476]
[1749053936300,3.2078,2654.1,2654.0,5.82054476]
[1749053936502,3.2078,2654.7,2654.1,1.883]
[1749053936799,3.2078,2654.7,2654.0,5.06731476]
[1749053936800,0.7531,2654.5,2654.4,0.75311]
[1749053937202,3.2078,2654.7,2654.2,5.262]
[1749053937506,0.7531,2654.5,2654.4,0.7531]
[1749053937707,3.2078,2654.5,2654.4,0.7531]
[1749053938497,3.2078,2654.8,2654.7,0.75303]
[1749053938805,0.00564823,2654.9,2654.6,0.75304]
[1749053939001,0.00564823,2654.9,2654.7,6.01503]
[1749053939002,3.2078,2654.8,2654.7,6.01503]
[1749053941409,3.2078,2654.8,2654.2,3.2078]
[1749053941608,3.2078,2654.8,2654.0,0.06731476]
[1749053941609,0.7532,2654.1,2654.0,0.06731476]
[1749053941803,3.2078,2654.1,2653.5,0.6331]
[1749053942007,1.88343,2653.5,2652.6,0.6331]
[1749053942202,1.88364,2653.2,2652.7,5.262]
[1749053942411,3.2078,2653.0,2652.8,5.262]
[1749053942609,3.2078,2653.3,2652.8,5.262]
[1749053942915,3.2078,2653.3,2653.2,0.75345]
[1749053943211,3.8153,2653.9,2653.5,0.75335]
[1749053943515,0.00564823,2654.1,2654.0,0.75323]
[1749053943708,0.00564823,2654.1,2654.0,14.22303]
[1749053944013,0.25207243,2654.7,2654.6,0.75306]
[1749053944216,3.2078,2654.8,2654.7,0.75303]
[1749053944413,0.753,2654.8,2654.7,1.308]
[1749053944715,3.96078,2654.9,2654.6,5.263]
[1749053944916,3.2078,2654.9,2654.5,0.00564823]
[1749053945116,3.96086,2654.6,2654.5,0.00564823]
[1749053946411,4.8400248,2654.6,2654.5,0.00564823]
[1749053947213,4.84078142,2654.6,2654.5,0.00564823]
[1749053948221,4.08772142,2654.6,2654.5,0.75872823]
[1749053949210,0.00564823,2655.0,2654.9,0.75297]
[1749053949416,3.2078,2655.8,2654.9,5.263]
[1749053949718,5.0908,2655.8,2654.7,1.261]
[1749053949921,3.2078,2655.5,2655.0,0.75293]
[1749053950113,3.2078,2655.5,2655.1,5.263]
[1749053950315,3.2078,2655.5,2655.2,0.75289]
[1749053950316,0.75285,2655.4,2655.2,0.75289]
[1749053950514,3.2078,2655.5,2655.1,5.263]
[1749053950722,3.2078,2655.5,2655.4,0.75283]
[1749053950916,0.00564823,2655.6,2655.5,0.7528]
[1749053951319,0.00564823,2655.6,2655.5,6.0148]
[1749053952218,2.9959625,2656.8,2656.7,0.75246]
[1749053952522,0.6174,2658.0,2656.7,8.7478]
[1749053952721,0.75218,2657.7,2657.6,3.2078]
[1749053952924,0.6174,2658.0,2657.6,3.2078]
[1749053953427,0.5957,2658.3,2656.9,1.2353]
[1749053953428,0.00564823,2658.1,2657.9,3.2078]
[1749053953623,0.00564823,2658.1,2658.0,0.75209]
[1749053954226,0.00564823,2658.1,2658.0,1.98739]
[1749053955226,0.00564823,2658.1,2658.0,0.75209]
[1749053955430,0.00564823,2658.1,2657.9,3.9599]
[1749053955628,0.00564823,2658.1,2658.0,0.75209]
[1749053956630,0.00564823,2658.1,2658.0,1.97349]
[1749053957122,0.00564823,2658.1,2658.0,7.51049]
[1749053957321,0.00564823,2658.1,2658.0,12.51049]
[1749053957322,8.23e-06,2658.1,2658.0,12.51049]
[1749053957531,8.23e-06,2658.1,2658.0,7.51049]
[1749053962431,8.23e-06,2658.1,2658.0,7.50749]
[1749053963725,8.23e-06,2658.1,2657.9,4.02722476]
[1749053964030,0.75208823,2658.1,2657.9,4.02721476]
[1749053964230,0.75208823,2658.1,2657.9,3.9599]
[1749053964428,0.75208823,2658.1,2657.9,3.2078]
[1749053964429,8.23e-06,2658.1,2657.9,3.2078]
[1749053964623,8.23e-06,2658.1,2658.0,0.75209]
[1749053965229,8.23e-06,2658.1,2658.0,2.02949]
[1749053965626,8.23e-06,2658.1,2657.9,3.27511476]
[1749053965627,0.75207823,2658.1,2657.9,3.27511476]
[1749053965828,8.23e-06,2658.1,2657.9,4.02722476]
[1749053966223,1.99098823,2658.1,2657.9,4.02722476]
[1749053966628,1.23890823,2658.1,2658.0,0.75209]
[1749053967538,8.23e-06,2658.1,2658.0,0.75209]
[1749053968833,8.23e-06,2658.1,2658.0,6.28609]
[1749053969139,8.23e-06,2658.1,2658.0,7.50249]
[1749053969333,8.23e-06,2658.1,2658.0,1.96849]
[1749053969533,8.23e-06,2658.1,2658.0,6.28609]
[1749053971042,8.23e-06,2658.1,2658.0,0.75209]
[1749053972047,8.23e-06,2658.1,2658.0,1.96899]
[1749053972452,8.23e-06,2658.1,2658.0,0.75209]
[1749053972751,8.23e-06,2658.1,2658.0,1.96899]
[1749053974747,8.23e-06,2658.1,2658.0,0.75209]
[1749053974947,8.23e-06,2658.1,2658.0,6.28509]
[1749053975251,8.23e-06,2658.1,2658.0,0.75209]
[1749053975454,8.23e-06,2658.1,2658.0,0.06731476]
[1749053975751,0.75206823,2658.1,2658.0,0.06731476]
[1749053975945,8.23e-06,2658.1,2658.0,0.81940476]
[1749053976746,8.23e-06,2658.1,2658.0,6.35240476]
[1749053977147,8.23e-06,2658.1,2658.0,7.54150476]
[1749053977947,8.23e-06,2658.1,2658.0,8.19830476]
[1749053979450,8.23e-06,2658.1,2658.0,13.19830476]
[1749053981550,8.23e-06,2658.1,2658.0,13.13099]
[1749053982462,8.23e-06,2658.1,2658.0,14.61893234]
[1749053983960,8.23e-06,2658.1,2658.0,13.13099]
[1749053984661,0.614,2659.4,2659.3,0.75172]
[1749053984662,1.36571,2659.4,2659.3,0.75172]
[1749053984865,4.57271,2659.4,2659.3,3.95952]
[1749053985067,9.57271,2659.4,2659.3,3.95952]
[1749053985454,9.57271,2659.4,2659.1,0.00564823]
[1749053985455,1.87934,2659.3,2659.1,0.00564823]
[1749053985767,0.75175,2659.2,2659.1,0.00564823]
[1749053985965,1.98095,2659.2,2659.1,0.00564823]
[1749053986165,6.98095,2659.2,2659.1,0.75742823]
[1749053986360,1.98095,2659.2,2659.1,0.75742823]
[1749053987660,4.57272,2659.4,2659.3,0.75172]
[1749053987967,9.57272,2659.4,2659.3,0.75172]
[1749053988168,0.75174,2659.3,2659.2,0.75173]
[1749053988365,1.98094,2659.3,2659.2,0.75173]
[1749053988966,1.2292,2659.3,2659.2,0.75173]
[1749053989364,1.2292,2659.3,2659.1,0.00564823]
[1749053989365,4.57272,2659.4,2659.3,0.75172]
[1749053989766,3.207,2659.4,2659.3,0.75172]
[1749053990065,3.95868,2659.5,2659.4,0.7517]
[1749053990259,3.95868,2659.5,2659.1,5.09287823]
[1749053990260,0.75175,2659.2,2659.1,0.00564823]
[1749053990565,0.75175,2659.2,2659.1,0.75742823]
[1749053991465,2.55082,2659.4,2659.3,0.75172]
[1749053993670,0.6109,2659.4,2659.3,0.75172]
[1749053993871,3.207,2659.5,2659.4,0.7517]
[1749053994565,3.95867,2659.5,2659.4,0.7517]
[1749053994763,3.207,2659.5,2659.4,0.7517]
[1749053996068,3.207,2659.5,2659.4,3.9595]
[1749053996267,3.207,2659.5,2659.4,10.5877]
[1749053996573,3.207,2659.5,2659.4,3.9595]
[1749053996765,3.207,2659.5,2659.4,9.3125]
[1749053997966,3.207,2659.5,2659.4,10.5877]
[1749053999274,3.95867,2659.5,2659.4,9.3115]
[1749053999570,5.21257,2659.5,2659.4,3.2078]
[1749053999774,0.75172,2659.3,2659.2,5.352]
[1749053999975,0.75172,2659.3,2659.2,6.10375]
[1749054000272,0.75187,2658.8,2658.7,3.2078]
[1749054000574,0.75189,2658.8,2658.7,0.75188]
[1749054001070,2.5582,2659.2,2658.7,0.75188]
[1749054001274,0.75183,2659.0,2658.9,0.75183]
[1749054001473,0.75184,2658.9,2658.8,0.75185]
[1749054001774,2.5582,2659.2,2658.7,0.00564823]
[1749054001775,0.75183,2659.0,2658.9,0.75182]
[1749054002174,3.30996,2659.2,2659.1,0.75178]